bitfinex-derivatives/quotes_ETHF0:USTF0_20250612
["timestamp","ask_amount","ask_price","bid_price","bid_amount"]
[1749717423676,1.27284,2749.3,2749.2,0.72735]
[1749717423878,0.72736,2749.2,2749.1,0.72736]
[1749717424073,0.72737,2749.1,2749.0,21.512]
[1749717424272,0.291,2749.1,2749.0,21.512]
[1749717424474,0.291,2749.1,2749.0,22.2394]
[1749717425277,0.291,2749.1,2749.0,23.5343]
[1749717426774,1.01837,2749.1,2749.0,22.2394]
[1749717426980,1.01837,2749.1,2749.0,4.509]
[1749717427176,1.01837,2749.1,2749.0,21.512]
[1749717427578,0.7274,2749.0,2748.9,3.21324999]
[1749717427773,0.7274,2749.0,2748.9,4.51344999]
[1749717427968,1.9451,2749.0,2748.9,0.00544999]
[1749717428977,0.7274,2749.0,2748.9,0.00544999]
[1749717429273,0.291,2749.1,2748.9,7.72124999]
[1749717429478,0.7274,2749.0,2748.9,4.51344999]
[1749717429775,0.7274,2749.0,2748.9,21.51644999]
[1749717429981,1.932,2749.0,2748.9,0.00544999]
[1749717430180,1.932,2749.0,2748.9,17.00744999]
[1749717430681,1.932,2749.0,2748.9,0.00544999]
[1749717431180,6.932,2749.0,2748.9,0.00544999]
[1749717431379,0.7275,2748.6,2748.5,4.508]
[1749717431883,0.72753,2748.5,2748.4,20.2108]
[1749717433684,0.72758,2748.3,2748.2,4.508]
[1749717433879,0.72758,2748.3,2748.2,22.23861]
[1749717434081,0.72755,2748.5,2748.2,21.511]
[1749717434281,3.2078,2748.9,2748.2,21.511]
[1749717434588,0.9139,2749.1,2749.0,0.7274]
[1749717434783,1.01837,2749.1,2749.0,21.512]
[1749717437285,0.291,2749.1,2749.0,22.2394]
[1749717437585,0.72743,2748.9,2748.8,3.2078]
[1749717437885,0.72743,2748.9,2748.8,24.7198]
[1749717438085,0.291,2749.1,2748.9,0.7274]
[1749717438281,0.291,2749.1,2748.8,24.7198]
[1749717438588,0.72743,2748.9,2748.8,24.7198]
[1749717439086,0.291,2749.1,2748.8,25.44723]
[1749717439285,0.72743,2748.9,2748.8,25.44724]
[1749717439486,0.72743,2748.9,2748.8,24.7198]
[1749717444793,0.5456,2749.0,2748.8,24.7198]
[1749717445188,0.72743,2748.9,2748.8,25.44724]
[1749717445383,0.72743,2748.9,2748.8,24.7198]
[1749717446288,0.72743,2748.9,2748.8,7.7158]
[1749717446491,0.72743,2748.9,2748.8,24.7188]
[1749717447389,0.72743,2748.9,2748.8,25.44625]
[1749717447693,1.27301,2749.0,2748.9,0.72743]
[1749717448188,0.5456,2749.0,2748.8,3.2078]
[1749717448393,0.72743,2748.9,2748.8,17.003]
[1749717448594,4.9369,2749.0,2748.8,17.003]
[1749717448595,3.7534,2749.0,2748.9,0.72743]
[1749717448885,1.273,2749.0,2748.9,5.23543]
[1749717449090,0.5456,2749.0,2748.9,5.23543]
[1749717449292,0.5456,2749.0,2748.9,6.52633]
[1749717449499,1.273,2749.0,2748.9,6.52633]
[1749717449792,0.00544999,2749.4,2749.3,0.72732]
[1749717449989,0.00544999,2749.4,2749.3,25.44612]
[1749717450988,0.00544999,2749.4,2749.3,26.68532]
[1749717454099,0.72705,2750.4,2750.2,0.72707]
[1749717454288,1.2817,2750.6,2750.3,21.535]
[1749717454493,0.72703,2750.4,2750.3,21.535]
[1749717455193,0.72703,2750.4,2750.3,22.26205]
[1749717455497,0.72703,2750.4,2750.3,21.535]
[1749717455897,2.51854999,2750.6,2750.3,21.535]
[1749717455898,0.72702,2750.5,2750.3,21.535]
[1749717456093,0.72702,2750.5,2750.4,0.72702]
[1749717456593,0.00544999,2750.6,2750.5,0.727]
[1749717457290,0.00544999,2750.6,2750.5,2.6539]
[1749717459801,1.2223,2751.1,2751.0,0.72687]
[1749717460001,1.2223,2751.1,2751.0,17.012]
[1749717460295,1.94914,2751.1,2751.0,17.012]
[1749717461699,1.94914,2751.1,2751.0,17.73887]
[1749717461895,1.94914,2751.1,2751.0,17.012]
[1749717462901,0.6303,2751.1,2751.0,17.73887]
[1749717464202,1.35714,2751.1,2751.0,17.73887]
[1749717464904,1.35714,2751.1,2751.0,17.012]
[1749717465106,0.6303,2751.1,2750.7,3.2078]
[1749717465402,0.72703,2750.4,2750.3,3.2078]
[1749717465604,0.72703,2750.4,2750.3,7.7238]
[1749717465801,0.72703,2750.4,2750.3,24.7358]
[1749717466095,0.72703,2750.4,2750.3,7.7238]
[1749717466296,1.8971,2750.6,2750.3,24.7338]
[1749717466502,0.6162,2750.6,2750.5,0.727]
[1749717466707,0.72695,2750.7,2750.6,0.72696]
[1749717466900,0.72695,2750.7,2750.6,5.24298]
[1749717467202,0.72694,2750.8,2750.7,0.72695]
[1749717467403,0.6162,2751.0,2750.8,0.72692]
[1749717467608,0.72692,2750.8,2750.7,17.024]
[1749717468199,0.72695,2750.7,2750.6,4.516]
[1749717468498,0.72695,2750.7,2750.6,21.545]
[1749717468804,1.8444,2751.0,2750.7,0.72693]
[1749717468805,0.72692,2750.9,2750.7,0.72693]
[1749717468996,1.8444,2751.0,2750.7,0.72694]
[1749717469199,0.72693,2750.8,2750.7,0.72694]
[1749717469398,0.72691,2750.9,2750.8,0.72692]
[1749717469593,0.6162,2751.0,2750.6,21.545]
[1749717469901,0.6162,2751.0,2750.9,0.7269]
[1749717470101,1.34309,2751.0,2750.9,0.7269]
[1749717471199,1.34309,2751.0,2750.8,3.2078]
[1749717471200,0.7269,2750.9,2750.8,3.93471]
[1749717471404,0.7269,2750.9,2750.8,3.2078]
[1749717471604,0.7269,2750.9,2750.8,3.93472]
[1749717474100,0.6162,2751.0,2750.8,3.93472]
[1749717474306,0.6303,2751.1,2751.0,0.72687]
[1749717474607,0.6303,2751.1,2751.0,5.24287]
[1749717475101,1.35714,2751.1,2751.0,5.24287]
[1749717475404,1.35714,2751.1,2751.0,4.516]
[1749717476997,0.72684,2751.1,2751.0,4.516]
[1749717478099,0.7269,2750.9,2750.8,3.93471]
[1749717478303,1.82245999,2751.3,2750.9,0.72688]
[1749717478304,0.72689,2751.0,2750.9,0.72688]
[1749717478700,0.7269,2750.9,2750.8,25.44271]
[1749717479300,0.72689,2751.0,2750.9,0.72688]
[1749717479708,0.00544999,2751.3,2751.2,0.72682]
[1749717479902,0.00544999,2751.3,2751.2,5.24182]
[1749717480305,0.00544999,2751.3,2751.2,47.31602]
[1749717481205,0.73223999,2751.3,2751.2,46.5892]
[1749717481406,0.73223999,2751.3,2751.2,47.31602]
[1749717481710,0.73223999,2751.3,2751.2,63.03282]
[1749717481910,0.00544999,2751.3,2751.2,63.03282]
[1749717482311,0.73223999,2751.3,2751.2,63.03282]
[1749717482705,0.00544999,2751.3,2751.2,63.03282]
[1749717483307,0.00544999,2751.3,2751.2,64.96622]
[1749717484307,0.73223999,2751.3,2751.2,64.96622]
[1749717484811,0.73223999,2751.3,2751.2,47.2484]
[1749717485008,0.7269,2750.9,2750.8,3.2078]
[1749717485411,0.7269,2750.9,2750.8,16.989]
[1749717486010,0.72692,2750.8,2750.7,4.515]
[1749717486315,0.72692,2750.8,2750.7,21.504]
[1749717486316,1.91492,2750.8,2750.7,21.504]
[1749717487322,0.72692,2750.8,2750.7,21.504]
[1749717488725,0.72691,2750.9,2750.7,21.504]
[1749717488927,0.72692,2750.8,2750.7,21.504]
[1749717489127,1.95182,2750.8,2750.7,21.504]
[1749717490229,0.72692,2750.8,2750.7,21.504]
[1749717491320,0.72691,2750.9,2750.8,0.72692]
[1749717491624,1.205,2751.2,2750.8,3.2078]
[1749717491921,1.205,2751.2,2750.5,1.81748]
[1749717491922,1.205,2751.2,2750.9,21.494]
[1749717492125,1.205,2751.2,2750.5,3.2078]
[1749717492126,0.72698,2750.6,2750.5,3.2078]
[1749717492324,0.72698,2750.6,2750.5,7.7118]
[1749717492529,0.72698,2750.6,2750.5,4.504]
[1749717492735,0.72698,2750.6,2750.5,21.494]
[1749717493226,0.72698,2750.6,2750.5,22.221]
[1749717493426,0.72698,2750.6,2750.5,24.7018]
[1749717493727,0.72698,2750.6,2750.5,21.494]
[1749717494425,0.72698,2750.6,2750.5,22.221]
[1749717494626,0.72698,2750.6,2750.5,24.7018]
[1749717494825,3.2078,2751.0,2750.7,0.72694]
[1749717495129,3.2078,2751.0,2750.9,0.7269]
[1749717495329,3.2078,2751.0,2750.9,22.2219]
[1749717495629,3.93467,2751.0,2750.9,22.2219]
[1749717495831,3.93467,2751.0,2750.9,21.495]
[1749717496127,3.93467,2751.0,2750.9,22.2219]
[1749717496529,3.93467,2751.0,2750.9,21.495]
[1749717498120,0.72698,2750.6,2750.5,3.2078]
[1749717498320,0.72698,2750.6,2750.5,4.504]
[1749717498530,0.72698,2750.6,2750.5,21.494]
[1749717500326,0.72697,2750.7,2750.6,0.72697]
[1749717500528,0.72698,2750.6,2750.5,22.22098]
[1749717500724,3.2078,2751.0,2750.5,21.494]
[1749717500932,0.72691,2750.9,2750.8,0.72691]
[1749717501226,0.72691,2750.9,2750.8,5.23091]
[1749717501437,3.2078,2751.0,2750.9,0.7269]
[1749717501627,0.72684,2751.1,2751.0,0.72685]
[1749717502525,0.72687,2751.0,2750.9,17.71788]
[1749717502734,0.72687,2751.1,2751.0,0.72686]
[1749717503432,1.205,2751.2,2750.9,16.991]
[1749717503433,0.6095,2751.2,2751.1,0.72684]
[1749717503630,0.73225999,2751.3,2751.0,1.186]
[1749717503932,0.64314999,2751.3,2751.2,0.72682]
[1749717504134,0.64314999,2751.3,2751.2,5.23082]
[1749717504335,1.36993999,2751.3,2751.2,4.504]
[1749717505232,0.00544999,2751.3,2751.2,4.504]
[1749717505431,0.00544999,2751.3,2751.2,5.23082]
[1749717505935,0.00544999,2751.3,2751.2,22.21982]
[1749717506436,0.73223999,2751.3,2751.2,21.493]
[1749717506638,0.00544999,2751.3,2750.8,0.72691]
[1749717506836,0.72687,2751.0,2750.9,21.493]
[1749717508828,0.72687,2751.0,2750.9,4.504]
[1749717509139,0.727,2750.5,2750.4,4.504]
[1749717509438,0.727,2750.5,2750.4,21.493]
[1749717509839,0.727,2750.5,2750.4,4.504]
[1749717510232,6.81753,2750.5,2750.2,16.989]
[1749717510540,0.72708,2750.2,2750.1,4.50944999]
[1749717510743,0.72708,2750.2,2750.1,21.49844999]
[1749717510937,0.72708,2750.2,2750.1,0.00544999]
[1749717511338,5.72708,2750.2,2750.1,0.00544999]
[1749717511635,8.93488,2750.2,2750.1,9.99e-06]
[1749717512341,10.38938826,2750.2,2750.1,9.99e-06]
[1749717513136,14.89438826,2750.2,2750.1,9.99e-06]
[1749717521743,3.93488,2750.2,2750.1,9.99e-06]
[1749717531943,8.93488,2750.2,2750.1,9.99e-06]
[1749717532350,11.42638,2750.2,2750.1,9.99e-06]
[1749717532744,15.93238,2750.2,2750.1,9.99e-06]
[1749717534249,3.93488,2750.2,2750.1,9.99e-06]
[1749717536554,3.93488,2750.2,2750.1,4.50600999]
[1749717537452,3.93488,2750.2,2750.1,5.70180999]
[1749717537956,3.2078,2750.2,2750.1,11.42891999]
[1749717539158,3.2078,2750.2,2750.1,10.70180999]
[1749717539159,3.93488,2750.2,2750.1,10.70180999]
[1749717539453,3.93488,2750.2,2750.1,11.42891999]
[1749717539645,3.93488,2750.2,2750.1,52.22891999]
[1749717540253,3.2078,2750.2,2750.1,52.22891999]
[1749717540454,3.93488,2750.2,2750.1,5.70080999]
[1749717540851,0.72708,2750.2,2750.1,5.70080999]
[1749717541149,0.72708,2750.2,2750.1,1.19580999]
[1749717543757,0.5453,2750.3,2750.2,0.72708]
[1749717544158,0.5453,2750.3,2750.2,5.72708]
[1749717544451,1.27235,2750.3,2750.2,5.0]
[1749717544646,1.27235,2750.3,2750.2,26.499]
[1749717544846,1.27235,2750.3,2750.1,4.40360999]
[1749717544847,0.72708,2750.2,2750.1,4.40360999]
[1749717545046,0.72708,2750.2,2750.1,29.70580999]
[1749717545356,1.01788,2750.2,2750.1,29.70580999]
[1749717545758,0.2908,2750.2,2750.1,30.43289999]
[1749717546248,1.01788,2750.2,2750.1,7.71280999]
[1749717546452,1.01788,2750.2,2750.1,24.70580999]
[1749717547055,1.01788,2750.2,2750.1,25.43291999]
[1749717547250,0.2908,2750.2,2750.1,30.43291999]
[1749717548058,3.93475,2750.8,2750.7,0.72695]
[1749717548258,3.93475,2750.8,2750.7,21.497]
[1749717548856,0.727,2750.5,2750.2,40.8]
[1749717549055,0.72705,2750.4,2750.3,22.22404]
[1749717549256,0.72703,2750.5,2750.4,0.72702]
[1749717549452,0.72703,2750.5,2750.4,0.65]
[1749717550151,0.72705,2750.3,2750.2,0.72708]
[1749717550359,0.72707,2750.3,2750.2,21.497]
[1749717550858,0.72704,2750.4,2750.3,0.72705]
[1749717551451,0.72704,2750.4,2750.3,3.93485]
[1749717551657,0.72702,2750.5,2750.4,0.72703]
[1749717551858,0.72693,2750.8,2750.7,0.72694]
[1749717552059,0.72693,2750.8,2750.7,4.504]
[1749717554262,0.727,2750.5,2750.4,0.72702]
[1749717554463,0.727,2750.5,2750.4,22.22102]
[1749717555256,0.727,2750.5,2750.4,4.503]
[1749717555565,0.727,2750.5,2750.4,21.494]
[1749717556161,0.727,2750.5,2750.4,4.503]
[1749717557961,0.6177,2750.8,2750.4,4.503]
[1749717558172,3.2078,2751.0,2750.5,0.6434]
[1749717558469,0.72695,2750.7,2750.6,0.72696]
[1749717558760,3.2078,2751.0,2750.5,0.6434]
[1749717558761,0.72697,2750.6,2750.5,1.37038]
[1749717559163,0.72697,2750.6,2750.5,0.6434]
[1749717559666,0.72697,2750.6,2750.5,1.3704]
[1749717560066,0.72697,2750.6,2750.5,2.6398]
[1749717561470,0.72697,2750.6,2750.5,1.9128]
[1749717561667,0.72692,2750.9,2750.8,0.72691]
[1749717561873,0.72692,2750.9,2750.8,22.21991]
[1749717562172,0.72692,2750.9,2750.8,21.493]
[1749717562371,0.72697,2750.6,2750.5,1.9128]
[1749717562562,0.72696,2750.7,2750.5,23.4058]
[1749717562766,0.72696,2750.7,2750.6,0.72696]
[1749717563069,0.72697,2750.6,2750.5,24.13279]
[1749717563572,0.72697,2750.7,2750.6,0.72697]
[1749717564570,0.72697,2750.6,2750.5,24.13279]
[1749717564771,0.72697,2750.6,2750.5,22.86339]
[1749717565172,0.72697,2750.7,2750.6,0.72696]
[1749717565866,0.72697,2750.6,2750.5,22.86338]
[1749717566073,0.72697,2750.6,2750.5,22.21998]
[1749717567276,6.30271,2751.0,2750.6,0.72696]
[1749717567277,0.72697,2750.7,2750.6,0.72696]
[1749717567973,0.72697,2750.6,2750.5,22.21999]
[1749717568886,0.72697,2750.6,2750.5,25.42779]
[1749717571979,0.72697,2750.6,2750.5,7.7108]
[1749717572178,0.72697,2750.6,2750.5,3.2078]
[1749717572383,0.72697,2750.6,2750.5,20.1948]
[1749717573486,0.6239,2751.1,2750.6,0.72696]
[1749717573684,0.72692,2750.8,2750.7,4.503]
[1749717573879,0.72692,2750.8,2750.7,5.22995]
[1749717574882,0.72692,2750.8,2750.7,4.503]
[1749717576885,0.72692,2750.8,2750.7,21.49]
[1749717578891,0.72692,2750.8,2750.7,22.21695]
[1749717579092,0.72692,2750.8,2750.7,21.49]
[1749717579292,0.72691,2750.9,2750.8,0.72692]
[1749717579993,0.72692,2750.8,2750.7,22.21694]
[1749717580788,0.72692,2750.8,2750.7,17.71394]
[1749717583592,0.72691,2750.9,2750.8,0.7269]
[1749717583793,0.6239,2751.1,2750.8,7.7088]
[1749717583999,0.7269,2750.9,2750.8,8.43571]
[1749717584695,0.7269,2750.9,2750.8,7.7088]
[1749717586597,0.7269,2750.9,2750.8,8.43572]
[1749717587201,0.7269,2750.9,2750.8,7.7088]
[1749717588305,0.6239,2751.1,2750.8,16.984]
[1749717588505,0.7269,2750.9,2750.8,16.984]
[1749717588800,0.72695,2750.7,2750.6,4.501]
[1749717589099,0.72695,2750.7,2750.6,21.485]
[1749717589500,0.72708,2750.2,2750.1,3.20780999]
[1749717589694,0.72708,2750.2,2750.1,24.69280999]
[1749717590204,0.72708,2750.2,2750.1,25.41991999]
[1749717590396,0.72708,2750.2,2750.1,24.69280999]
[1749717591504,0.72708,2750.2,2750.1,20.19180999]
[1749717593001,0.72708,2750.2,2750.1,3.20780999]
[1749717593202,0.72708,2750.2,2750.1,9.99e-06]
[1749717593502,11.68248844,2750.2,2750.1,9.99e-06]
[1749717594904,12.94288844,2750.2,2750.1,9.99e-06]
[1749717596407,12.94388844,2750.2,2750.1,9.99e-06]
[1749717598301,8.44188844,2750.2,2750.1,9.99e-06]
[1749717598505,12.94388844,2750.2,2750.1,9.99e-06]
[1749717602210,0.7275,2748.6,2748.5,7.7108]
[1749717602501,0.72758,2748.3,2748.2,3.2078]
[1749717603109,0.00544999,2748.5,2748.2,5.84041]
[1749717603411,0.72758,2748.3,2748.2,5.1128]
[1749717603609,0.72758,2748.3,2748.2,3.8138]
[1749717603800,0.00544999,2748.5,2748.2,4.54141]
[1749717604007,0.72756,2748.4,2748.2,4.54141]
[1749717604204,0.72756,2748.4,2748.2,4.5414]
[1749717604911,0.72758,2748.3,2748.2,4.5414]
[1749717605113,0.72758,2748.3,2748.2,3.8138]
[1749717605503,0.72758,2748.3,2748.2,20.8048]
[1749717605911,0.72756,2748.4,2748.3,0.72757]
[1749717606210,0.73299999,2748.5,2748.3,0.72757]
[1749717606512,0.72758,2748.3,2748.2,17.597]
[1749717607301,0.72758,2748.3,2748.2,18.32461]
[1749717607711,0.72758,2748.3,2748.2,17.597]
[1749717608213,0.72758,2748.3,2748.2,22.099]
[1749717608615,0.72764,2748.1,2748.0,0.00544999]
[1749717608810,0.72764,2748.1,2748.0,4.50644999]
[1749717609115,0.72764,2748.1,2748.0,21.49844999]
[1749717610417,0.72764,2748.1,2748.0,0.00544999]
[1749717610618,0.72764,2748.1,2748.0,16.99744999]
[1749717611113,0.72764,2748.1,2748.0,0.00544999]
[1749717611714,4.426,2748.2,2748.0,0.73309999]
[1749717611715,3.2078,2748.2,2748.0,0.73309999]
[1749717611917,3.2078,2748.2,2748.1,0.72764]
[1749717612116,0.55114999,2748.5,2748.3,0.72756]
[1749717612322,0.55114999,2748.5,2748.1,3.2078]
[1749717612521,0.72761,2748.2,2748.1,3.2078]
[1749717614222,0.72764,2748.1,2748.0,4.50744999]
[1749717614531,0.72764,2748.1,2748.0,0.00544999]
[1749717614923,1.34514,2748.1,2748.0,0.00544999]
[1749717615220,2.58124,2748.1,2748.0,0.00544999]
[1749717616018,3.2078,2748.2,2748.0,0.00544999]
[1749717616225,3.2078,2748.2,2748.1,0.72764]
[1749717616425,0.72761,2748.2,2748.1,4.502]
[1749717617226,0.72764,2748.1,2748.0,7.71524999]
[1749717618019,0.6053,2748.4,2748.0,7.71524999]
[1749717618226,0.7276,2748.3,2748.1,0.72761]
[1749717618422,0.72761,2748.2,2748.1,0.72761]
[1749717618823,0.72761,2748.3,2748.1,1.95021]
[1749717619026,0.84214999,2748.5,2748.2,1.2226]
[1749717619227,0.72758,2748.3,2748.2,1.2226]
[1749717621026,0.72758,2748.4,2748.2,1.2226]
[1749717621428,0.72758,2748.4,2748.3,0.5987]
[1749717621930,0.72758,2748.4,2748.3,2.55368]
[1749717622123,1.56969999,2748.5,2748.4,0.72756]
[1749717622319,0.73299999,2748.5,2748.4,1.8227]
[1749717623129,2.18813999,2748.5,2748.4,2.55026]
[1749717623431,1.46058999,2748.5,2748.4,7.05226]
[1749717624119,3.2078,2748.9,2748.4,9.5325]
[1749717624330,3.2078,2749.3,2748.5,18.81283]
[1749717624530,0.72742,2748.9,2748.8,0.72743]
[1749717624730,0.72742,2748.9,2748.8,4.502]
[1749717625528,0.72742,2748.9,2748.8,9.5385]
[1749717626031,0.72742,2748.9,2748.8,10.26595]
[1749717626335,0.5456,2749.0,2748.9,0.72742]
[1749717626635,1.273,2749.0,2748.9,1.2221]
[1749717628831,0.5456,2749.0,2748.9,1.94952]
[1749717629537,1.273,2749.0,2748.9,1.2221]
[1749717630634,1.273,2749.0,2748.9,16.991]
[1749717630831,0.7275,2748.6,2748.5,3.2078]
[1749717631129,0.7275,2748.6,2748.5,24.6998]
[1749717631837,0.7275,2748.6,2748.5,7.7088]
[1749717632135,0.7275,2748.6,2748.1,1.802]
[1749717632136,0.72758,2748.3,2748.2,3.2078]
[1749717632337,0.72758,2748.3,2748.2,24.7008]
[1749717634039,1.1622,2749.0,2748.2,29.7008]
[1749717634337,1.273,2749.0,2748.9,3.2078]
[1749717634532,1.273,2749.0,2748.9,24.7008]
[1749717639944,1.273,2749.0,2748.9,25.911]
[1749717641645,1.273,2749.0,2748.9,26.63842]
[1749717642345,1.273,2749.0,2748.9,25.911]
[1749717643341,1.273,2749.0,2748.9,26.63842]
[1749717643943,0.5456,2749.0,2748.9,26.63842]
[1749717645958,3.2078,2749.9,2749.1,1.81844]
[1749717646152,3.2078,2749.9,2749.8,0.72719]
[1749717646351,1.01806,2749.9,2749.8,21.486]
[1749717646858,0.2909,2749.9,2749.8,22.21319]
[1749717647453,0.2909,2749.9,2749.8,23.40809]
[1749717648561,0.2909,2749.9,2749.8,64.20809]
[1749717649061,0.00544999,2750.1,2750.0,0.72713]
[1749717649359,0.6001,2750.6,2750.0,3.2078]
[1749717649566,0.72701,2750.5,2750.3,0.72704]
[1749717649753,0.72701,2750.5,2750.4,21.483]
[1749717650349,2.01281,2750.5,2750.4,21.483]
[1749717651055,0.72701,2750.5,2750.4,21.483]
[1749717651562,0.72701,2750.5,2750.4,24.6908]
[1749717653958,1.32709,2750.6,2750.4,25.41781]
[1749717654159,0.6001,2750.6,2750.5,0.727]
[1749717654555,1.3271,2750.6,2750.5,0.727]
[1749717655266,0.6001,2750.6,2750.4,24.6908]
[1749717655563,0.6001,2750.6,2750.5,0.727]
[1749717655760,3.2078,2751.3,2751.2,0.72682]
[1749717655967,1.81646,2752.1,2751.2,0.72682]
[1749717655968,3.2078,2751.6,2751.3,0.72677]
[1749717656260,3.2078,2751.6,2751.2,21.476]
[1749717656476,1.2533,2751.7,2751.6,0.72671]
[1749717656660,1.2533,2751.7,2751.6,5.22371]
[1749717656857,0.6201,2751.7,2751.6,5.22371]
[1749717657063,0.00544999,2751.9,2751.8,0.72666]
[1749717657366,0.00544999,2751.9,2751.8,20.91246]
[1749717657663,3.2078,2752.8,2752.6,0.72645]
[1749717657857,3.2078,2752.8,2752.7,16.978]
[1749717658064,3.93419,2752.8,2752.7,16.978]
[1749717658359,5.11499,2752.8,2752.7,16.978]
[1749717658862,0.72645,2752.6,2752.5,0.00544999]
[1749717659068,0.72645,2752.6,2752.5,16.97844999]
[1749717659866,4.3886,2752.8,2752.5,16.97844999]
[1749717660068,3.9342,2752.8,2752.5,16.97844999]
[1749717660368,3.2078,2752.8,2752.5,16.97844999]
[1749717660666,3.9342,2752.8,2752.5,16.97844999]
[1749717660867,3.2078,2752.8,2752.5,17.70491999]
[1749717661169,0.7264,2752.8,2752.6,3.2078]
[1749717661371,0.0036333,2753.0,2752.6,3.2078]
[1749717661565,0.0036333,2753.0,2752.6,4.4454]
[1749717661869,0.0036333,2753.0,2752.8,0.72638]
[1749717662066,0.0036333,2753.0,2752.9,4.495]
[1749717662963,0.0036333,2753.0,2752.9,5.22137]
[1749717663570,0.0036333,2753.0,2752.9,22.18937]
[1749717664163,4.4456,2753.5,2753.4,0.72624]
[1749717664469,0.72616,2753.7,2753.4,22.18924]
[1749717664671,3.2078,2753.9,2753.4,21.463]
[1749717664872,0.72613,2753.8,2753.5,0.72619]
[1749717665269,3.2078,2753.9,2753.2,3.2078]
[1749717665574,1.2708,2753.7,2753.3,21.459]
[1749717665773,0.7262,2753.6,2753.3,21.459]
[1749717666173,1.2708,2753.7,2753.3,21.459]
[1749717666471,0.72618,2753.7,2753.4,0.72623]
[1749717666671,0.72619,2753.6,2753.3,22.18525]
[1749717666872,3.2078,2753.9,2753.3,21.459]
[1749717667073,0.72621,2753.5,2753.3,21.459]
[1749717667268,1.2708,2753.8,2753.3,21.459]
[1749717667467,1.2708,2753.8,2752.9,3.2078]
[1749717667668,0.72634,2753.0,2752.9,3.2078]
[1749717667870,0.72637,2752.9,2752.8,4.493]
[1749717668070,1.37647,2752.9,2752.8,21.454]
[1749717668368,4.58427,2752.9,2752.8,4.493]
[1749717668568,9.58427,2752.9,2752.8,21.454]
[1749717668976,0.72645,2752.6,2752.5,0.00544999]
[1749717671370,0.72643,2752.7,2752.5,0.00544999]
[1749717671575,0.7264,2752.8,2752.5,0.00544999]
[1749717671772,0.7264,2752.8,2752.5,0.73191999]
[1749717671978,0.7264,2752.8,2752.5,0.00544999]
[1749717672277,0.7264,2752.8,2752.5,0.73190999]
[1749717672475,0.72645,2752.6,2752.5,0.00544999]
[1749717672879,0.72645,2752.6,2752.5,21.45644999]
[1749717675277,0.72645,2752.6,2752.5,0.00544999]
[1749717675477,0.72645,2752.6,2752.5,16.96644999]
[1749717676879,1.2023,2752.8,2752.5,16.96644999]
[1749717677381,0.72645,2752.6,2752.5,16.96644999]
[1749717678081,0.72645,2752.6,2752.5,21.45644999]
[1749717678679,1.2023,2752.8,2752.5,21.45644999]
[1749717678877,3.8274,2753.2,2752.6,3.2078]
[1749717679080,0.72638,2752.9,2752.7,0.72641]
[1749717679381,3.8274,2753.2,2752.7,0.72641]
[1749717679578,3.2078,2753.2,2752.7,1.81606]
[1749717679784,3.8176,2753.9,2753.1,3.2078]
[1749717680080,3.2078,2753.3,2752.9,0.72636]
[1749717680282,3.2078,2753.3,2752.8,41.9774]
[1749717680283,3.2078,2753.3,2752.8,40.8]
[1749717680482,0.72634,2753.1,2753.0,21.45]
[1749717680692,0.72637,2752.9,2752.8,4.49]
[1749717680882,4.35026,2753.2,2752.8,4.49]
[1749717680883,4.5086,2753.0,2752.8,21.45]
[1749717681078,0.72637,2752.9,2752.8,21.45]
[1749717681283,2.02717,2752.9,2752.8,21.45]
[1749717681983,2.02717,2752.9,2752.8,4.49]
[1749717682181,0.72645,2752.6,2752.5,0.00544999]
[1749717682488,0.72645,2752.6,2752.5,21.45444999]
[1749717683289,2.59515,2752.6,2752.5,21.45444999]
[1749717683590,0.72641,2752.8,2752.6,0.72644]
[1749717683884,0.6343,2752.9,2752.8,0.7264]
[1749717684084,0.72637,2752.9,2752.7,0.72641]
[1749717684284,3.2078,2753.0,2752.6,1.1858]
[1749717684485,0.72638,2752.9,2752.7,0.72641]
[1749717684691,0.7264,2752.8,2752.6,1.91224]
[1749717684891,3.2078,2753.0,2752.7,1.1858]
[1749717685083,0.72637,2752.9,2752.7,1.1858]
[1749717685288,0.72637,2752.9,2752.7,1.91222]
[1749717685892,3.93416,2753.0,2752.8,0.7264]
[1749717686190,3.93416,2753.0,2752.9,4.49]
[1749717686390,5.19624459,2753.0,2752.9,4.49]
[1749717686588,1.98844459,2753.0,2752.9,4.49]
[1749717689897,1.97825783,2753.0,2752.9,4.49]
[1749717690196,1.25189783,2753.0,2752.9,21.448]
[1749717690393,1.97823783,2753.0,2752.9,21.448]
[1749717690594,1.97823783,2753.0,2752.9,22.17437]
[1749717690795,1.97067774,2753.0,2752.9,22.17437]
[1749717690995,1.24433774,2753.0,2752.9,22.17437]
[1749717691196,0.6098,2753.2,2752.9,21.448]
[1749717691498,0.72634,2753.0,2752.9,22.17437]
[1749717691699,3.2078,2753.3,2753.1,0.7263]
[1749717691895,1.23315864,2753.2,2753.1,0.7263]
[1749717692395,0.72629,2753.2,2753.1,0.7263]
[1749717693304,0.72632,2753.1,2753.0,0.72633]
[1749717693497,3.2078,2753.3,2753.1,0.72632]
[1749717693498,0.72631,2753.2,2753.1,0.72632]
[1749717694391,0.5966,2753.4,2752.9,21.448]
[1749717694392,1.32285,2753.4,2753.3,0.72626]
[1749717694596,1.32285,2753.4,2753.3,5.21626]
[1749717694893,1.32285,2753.4,2753.3,4.49]
[1749717696898,0.72632,2753.1,2753.0,4.3962]